[Event "POL-chT 2nd League-4 2020"]
[Site "Poronin"]
[Date "2020.09.08"]
[Round "4.8"]
[White "Stankiewicz, Pawel"]
[Black "Papka, Sebastian"]
[Result "1-0"]
[ECO "A08"]
[WhiteElo "2111"]
[BlackElo "2139"]
[Annotator "ChessBase"]
[PlyCount "75"]
[EventDate "2020.09.05"]
[EventType "team-tourn"]
[EventCountry "POL"]
[SourceTitle "playchess.com"]
[Source "ChessBase"]
[SourceQuality "1"]
[TimeControl "40/5400+30:900+30"]

1. Nf3 {[%emt 0:00:00]} Nf6 {[%emt 0:00:00]} 2. g3 {[%emt 0:00:00]} d5 {[%emt 0:00:00]} 3. Bg2 {[%emt 0:00:00]} c5 {[%emt 0:00:18]} 4. O-O {[%emt 0:00:06]} e6 {[%emt 0:00:28]} 5. d3 {[%emt 0:00:06]} Nc6 {[%emt 0:01:02]} 6. Nbd2 {[%emt 0:00:04]} Be7 {[%emt 0:01:04]} 7. e4 {[%emt 0:00:06]} O-O {[%emt 0:00:37]} 8. Re1 {[%emt 0:02:44]} Qc7 {[%emt 0:03:40]} 9. e5 {[%emt 0:00:10]} Nd7 {[%emt 0:00:44]} 10. Qe2 {[%emt 0:00:05]} b5 {[%emt 0:10:15]} 11. h4 {[%emt 0:00:05]} c4 {[%emt 0:02:11]} 12. d4 {[%emt 0:05:06]} c3 {[%emt 0:02:53]} 13. bxc3 {[%emt 0:01:35]} Na5 {[%emt 0:02:42]} 14. Qe3 {[%emt 0:06:47]} Nb6 {[%emt 0:04:05]} 15. Bf1 {[%emt 0:04:14]} Bd7 {[%emt 0:01:56]} 16. Bd3 {[%emt 0:04:21]} Rac8 {[%emt 0:04:52]} 17. Nb3 {[%emt 0:01:47]} Nac4 {[%emt 0:10:35]} 18. Qf4 {[%emt 0:01:31]} Na4 {[%emt 0:21:52]} 19. Qg4 {[%emt 0:04:06]} Nxc3 {[%emt 0:13:34]} 20. Bh6 {[%emt 0:10:10]} g6 {[%emt 0:00:45]} 21. h5 {[%emt 0:00:51]} Ne4 {[%emt 0:03:18]} 22. Rxe4 {[%emt 0:09:06]} dxe4 {[%emt 0:01:23]} 23. Bxe4 {[%emt 0:00:17]} Be8 {[%emt 0:02:24]} 24. hxg6 {[%emt 0:04:56]} hxg6 {[%emt 0:02:16]} 25. Bxf8 {[%emt 0:01:24]} Kxf8 {[%emt 0:02:13]} 26. Qh3 {[%emt 0:03:03]} Bb4 {[%emt 0:02:39]} 27. Qh4 {[%emt 0:05:13]} Qd8 {[%emt 0:00:57]} 28. Ng5 {[%emt 0:02:07]} Ke7 {[%emt 0:00:22]} 29. Nc5 {[%emt 0:04:19]} Bxc5 {[%emt 0:01:24]} 30. dxc5 {[%emt 0:00:01]} Nb2 {[%emt 0:02:22]} 31. c6 {[%emt 0:01:23]} Bxc6 {[%emt 0:00:38]} 32. Bxc6 {[%emt 0:00:01]} Qh8 {[%emt 0:00:45]} 33. Nh7+ {[%emt 0:00:48]} f6 {[%emt 0:00:24]} 34. exf6+ {[%emt 0:00:38]} Kf7 {[%emt 0:01:19]} 35. Ng5+ {[%emt 0:00:15]} Kxf6 {[%emt 0:00:45]} 36. Qf4+ {[%emt 0:01:05]} Ke7 {[%emt 0:00:28]} 37. Qf7+ {[%emt 0:00:21]} Kd6 {[%emt 0:00:03]} 38. Qxe6+ {[%emt 0:00:03]} 1-0

[Event "POL-chT 2nd League-4 2020"]
[Site "Poronin"]
[Date "2020.09.08"]
[Round "4.9"]
[White "Walaszczyk, Witold"]
[Black "Rychlik, Hanna"]
[Result "1-0"]
[ECO "A00"]
[WhiteElo "2028"]
[BlackElo "2053"]
[Annotator "ChessBase"]
[PlyCount "89"]
[EventDate "2020.09.05"]
[EventType "team-tourn"]
[EventCountry "POL"]
[SourceTitle "playchess.com"]
[Source "ChessBase"]
[SourceQuality "1"]
[TimeControl "40/5400+30:900+30"]

1. g3 {[%emt 0:00:00]} Nf6 {[%emt 0:00:00]} 2. Bg2 {[%emt 0:00:00]} d5 {[%emt 0:00:00]} 3. d4 {[%emt 0:00:14]} e6 {[%emt 0:03:24]} 4. Nf3 {[%emt 0:00:22]} b5 {[%emt 0:00:09]} 5. a4 {[%emt 0:01:17]} b4 {[%emt 0:00:10]} 6. c4 {[%emt 0:01:37]} bxc3 {[%emt 0:00:35]} 7. Nxc3 {[%emt 0:00:10]} Be7 {[%emt 0:05:40]} 8. O-O {[%emt 0:00:24]} O-O {[%emt 0:00:32]} 9. Qc2 {[%emt 0:01:18]} Ba6 {[%emt 0:17:32]} 10. Bf4 {[%emt 0:11:31]} Nh5 {[%emt 0:04:12]} 11. Bd2 {[%emt 0:16:12]} c6 {[%emt 0:13:05]} 12. Rfe1 {[%emt 0:04:56]} Nd7 {[%emt 0:09:31]} 13. e4 {[%emt 0:05:49]} Rc8 {[%emt 0:04:47]} 14. Rab1 {[%emt 0:01:29]} c5 {[%emt 0:03:23]} 15. exd5 {[%emt 0:00:41]} cxd4 {[%emt 0:02:52]} 16. Nxd4 {[%emt 0:01:14]} exd5 {[%emt 0:09:01]} 17. Qd1 {[%emt 0:04:40]} Nhf6 {[%emt 0:01:54]} 18. Nxd5 {[%emt 0:00:41]} Nxd5 {[%emt 0:02:09]} 19. Bxd5 {[%emt 0:00:08]} Bc5 {[%emt 0:02:43]} 20. Bc3 {[%emt 0:09:58]} Nf6 {[%emt 0:07:21]} 21. Bg2 {[%emt 0:03:50]} Nd5 {[%emt 0:02:49]} 22. Qg4 {[%emt 0:12:08]} Nxc3 {[%emt 0:02:14]} 23. bxc3 {[%emt 0:00:07]} Bxd4 {[%emt 0:00:36]} 24. Qxd4 {[%emt 0:02:23]} Qc7 {[%emt 0:00:28]} 25. Re3 {[%emt 0:02:47]} Rfd8 {[%emt 0:00:58]} 26. Qe4 {[%emt 0:00:40]} g6 {[%emt 0:01:24]} 27. h4 {[%emt 0:00:08]} Qd7 {[%emt 0:00:54]} 28. Qe7 {[%emt 0:04:14]} Qxa4 {[%emt 0:01:54]} 29. Qxa7 {[%emt 0:00:10]} Rd7 {[%emt 0:01:20]} 30. Qb6 {[%emt 0:08:36]} Rcd8 {[%emt 0:01:01]} 31. Rbe1 {[%emt 0:01:44]} Rd6 {[%emt 0:01:18]} 32. Qc5 {[%emt 0:00:15]} Rd2 {[%emt 0:00:48]} 33. Bc6 {[%emt 0:01:23]} Qc4 {[%emt 0:00:51]} 34. Re8+ {[%emt 0:00:34]} Rxe8 {[%emt 0:00:02]} 35. Rxe8+ {[%emt 0:00:09]} Kg7 {[%emt 0:00:03]} 36. Qe5+ {[%emt 0:00:21]} Kh6 {[%emt 0:01:37]} 37. Qe3+ {[%emt 0:01:54]} Kg7 {[%emt 0:00:01]} 38. Qxd2 {[%emt 0:00:57]} Qxc6 {[%emt 0:00:02]} 39. Qd4+ {[%emt 0:00:25]} Kh6 {[%emt 0:00:17]} 40. Qf4+ {[%emt 0:00:00]} Kg7 {[%emt 0:00:00]} 41. Qe5+ {[%emt 0:01:34]} Kh6 {[%emt 0:00:32]} 42. Rg8 {[%emt 0:00:41]} f6 {[%emt 0:02:31]} 43. Qf4+ {[%emt 0:01:33]} Kh5 {[%emt 0:01:07]} 44. g4+ {[%emt 0:00:11]} Kxh4 {[%emt 0:00:12]} 45. Qg3+ {[%emt 0:00:05]} 1-0

[Event "POL-chT 2nd League-4 2020"]
[Site "Poronin"]
[Date "2020.09.08"]
[Round "4.10"]
[White "Szmyd, Marek"]
[Black "Swiatnicki, Andrzej"]
[Result "1-0"]
[ECO "A06"]
[WhiteElo "1874"]
[BlackElo "2004"]
[Annotator "ChessBase"]
[PlyCount "101"]
[EventDate "2020.09.05"]
[EventType "team-tourn"]
[EventCountry "POL"]
[SourceTitle "playchess.com"]
[Source "ChessBase"]
[SourceQuality "1"]
[TimeControl "40/5400+30:900+30"]

1. Nf3 {[%emt 0:00:00]} d5 {[%emt 0:00:00]} 2. b3 {[%emt 0:00:18]} Nc6 {[%emt 0:01:15]} 3. Bb2 {[%emt 0:00:10]} Bg4 {[%emt 0:00:34]} 4. e3 {[%emt 0:02:19]} e5 {[%emt 0:02:42]} 5. h3 {[%emt 0:03:29]} Bxf3 {[%emt 0:00:05]} 6. Qxf3 {[%emt 0:00:05]} Nf6 {[%emt 0:00:12]} 7. Bb5 {[%emt 0:03:35]} Bd6 {[%emt 0:01:13]} 8. c4 {[%emt 0:02:06]} O-O {[%emt 0:04:44]} 9. Bxc6 {[%emt 0:03:53]} bxc6 {[%emt 0:00:02]} 10. c5 {[%emt 0:02:36]} Bxc5 {[%emt 0:00:30]} 11. Bxe5 {[%emt 0:00:05]} Be7 {[%emt 0:00:11]} 12. Nc3 {[%emt 0:07:19]} Nd7 {[%emt 0:02:07]} 13. Bg3 {[%emt 0:08:53]} d4 {[%emt 0:08:03]} 14. exd4 {[%emt 0:01:05]} Bf6 {[%emt 0:00:27]} 15. O-O {[%emt 0:08:02]} Bxd4 {[%emt 0:00:38]} 16. Qxc6 {[%emt 0:00:11]} Ne5 {[%emt 0:03:34]} 17. Bxe5 {[%emt 0:07:54]} Bxe5 {[%emt 0:00:03]} 18. Rad1 {[%emt 0:01:21]} Bd4 {[%emt 0:18:09]} 19. Rfe1 {[%emt 0:11:57]} Rb8 {[%emt 0:10:07]} 20. Re4 {[%emt 0:06:12]} Rb6 {[%emt 0:01:52]} 21. Qc4 {[%emt 0:02:03]} c5 {[%emt 0:00:23]} 22. Ne2 {[%emt 0:15:38]} Rb4 {[%emt 0:00:45]} 23. Qc2 {[%emt 0:00:12]} Qd5 {[%emt 0:13:31]} 24. Nxd4 {[%emt 0:01:32]} Rxd4 {[%emt 0:00:09]} 25. Rxd4 {[%emt 0:00:46]} Qxd4 {[%emt 0:00:08]} 26. Qc4 {[%emt 0:02:21]} Rd8 {[%emt 0:02:44]} 27. Qxd4 {[%emt 0:00:20]} Rxd4 {[%emt 0:00:07]} 28. Rc1 {[%emt 0:02:25]} Rxd2 {[%emt 0:00:38]} 29. Rxc5 {[%emt 0:00:05]} g6 {[%emt 0:00:46]} 30. a4 {[%emt 0:02:57]} Rb2 {[%emt 0:00:23]} 31. Rb5 {[%emt 0:00:17]} Kg7 {[%emt 0:04:03]} 32. a5 {[%emt 0:00:40]} h5 {[%emt 0:00:05]} 33. g4 {[%emt 0:00:44]} hxg4 {[%emt 0:00:44]} 34. hxg4 {[%emt 0:00:01]} Kf6 {[%emt 0:00:15]} 35. g5+ {[%emt 0:01:08]} Ke6 {[%emt 0:00:18]} 36. Kg2 {[%emt 0:01:08]} f6 {[%emt 0:00:25]} 37. gxf6 {[%emt 0:00:18]} Kxf6 {[%emt 0:00:05]} 38. Kf3 {[%emt 0:00:20]} Ke6 {[%emt 0:00:53]} 39. Rb7 {[%emt 0:01:28]} Kd5 {[%emt 0:01:39]} 40. Kg4 {[%emt 0:00:00]} Kc6 {[%emt 0:00:00]} 41. Rxa7 {[%emt 0:03:13]} Rxb3 {[%emt 0:11:58]} 42. Ra6+ {[%emt 0:00:23]} Kd7 {[%emt 0:02:08]} 43. Rxg6 {[%emt 0:00:26]} Rb4+ {[%emt 0:00:12]} 44. f4 {[%emt 0:00:49]} Ke7 {[%emt 0:00:19]} 45. a6 {[%emt 0:00:25]} Kf7 {[%emt 0:00:16]} 46. Rc6 {[%emt 0:00:19]} Ra4 {[%emt 0:00:07]} 47. Kg5 {[%emt 0:00:14]} Ra1 {[%emt 0:00:20]} 48. Rb6 {[%emt 0:04:30]} Ra5+ {[%emt 0:00:26]} 49. f5 {[%emt 0:00:23]} Ra1 {[%emt 0:00:10]} 50. Rb7+ {[%emt 0:00:07]} Kf8 {[%emt 0:00:07]} 51. a7 {[%emt 0:00:08]} 1-0

[Event "POL-chT 2nd League-4 2020"]
[Site "Poronin"]
[Date "2020.09.08"]
[Round "4.11"]
[White "Smagalski, Jaroslaw"]
[Black "Borowski, Przemyslaw"]
[Result "0-1"]
[ECO "B23"]
[WhiteElo "1843"]
[BlackElo "1842"]
[Annotator "NA"]
[PlyCount "70"]
[EventDate "2020.09.05"]
[EventType "team-tourn"]
[EventCountry "POL"]
[SourceTitle "playchess.com"]
[Source "ChessBase"]
[SourceQuality "1"]
[TimeControl "40/5400+30:900+30"]

1. e4 {[%emt 0:00:00]} c5 {[%emt 0:00:00]} 2. Nc3 {[%emt 0:00:00]} a6 {[%emt 0:00:00]} 3. f4 {[%emt 0:00:18]} b5 {[%emt 0:00:00]} 4. d3 {[%emt 0:05:31]} Bb7 {[%emt 0:00:00]} 5. Nf3 {[%emt 0:00:19]} e6 {[%emt 0:00:00]} 6. g3 {[%emt 0:03:01]} d5 {[%emt 0:00:18]} 7. e5 {[%emt 0:01:04]} Ne7 {[%emt 0:04:56]} 8. Bg2 {[%emt 0:01:20]} h5 {[%emt 0:00:50]} 9. Nh4 {[%emt 0:06:44]} g6 {[%emt 0:10:11]} 10. O-O {[%emt 0:05:18]} Nbc6 {[%emt 0:10:54]} 11. Ne2 {[%emt 0:06:34]} Qb6 {[%emt 0:09:17]} 12. Be3 {[%emt 0:01:15]} d4 {[%emt 0:08:55]} 13. Bf2 {[%emt 0:01:50]} O-O-O {[%emt 0:01:00]} 14. c3 {[%emt 0:11:59]} Nd5 {[%emt 0:06:49]} 15. Nf3 {[%emt 0:12:13]} Ne3 {[%emt 0:07:27]} 16. Bxe3 {[%emt 0:00:21]} dxe3 {[%emt 0:00:06]} 17. Ng5 {[%emt 0:00:21]} Rd7 {[%emt 0:05:24]} 18. h4 {[%emt 0:02:20]} Be7 {[%emt 0:09:45]} 19. Nxf7 {[%emt 0:01:56]} Rf8 {[%emt 0:00:02]} 20. Nd6+ {[%emt 0:00:39]} Bxd6 {[%emt 0:00:57]} 21. exd6 {[%emt 0:00:08]} Rxd6 {[%emt 0:05:49]} 22. Qc2 {[%emt 0:04:03]} Ne7 {[%emt 0:04:02]} 23. b4 {[%emt 0:14:52]} Bxg2 {[%emt 0:01:42]} 24. Kxg2 {[%emt 0:02:09]} Qc6+ {[%emt 0:00:47]} 25. Kh3 {[%emt 0:02:28]} cxb4 {[%emt 0:02:10]} 26. Rac1 {[%emt 0:01:01]} Kb7 {[%emt 0:07:24]} 27. Qb3 {[%emt 0:08:11]} Qd7 {[%emt 0:00:59]} 28. Qxb4 {[%emt 0:01:56]} Rxd3 {[%emt 0:01:40]} 29. f5 {[%emt 0:03:32]} exf5 {[%emt 0:01:05]} 30. Nf4 {[%emt 0:00:11]} Rd2 {[%emt 0:00:32]} 31. Rfe1 {[%emt 0:01:03]} Rd8 {[%emt 0:01:22]} 32. c4 {[%emt 0:01:53]} Nc6 {[%emt 0:00:34]} 33. Qc5 {[%emt 0:00:15]} b4 {[%emt 0:00:50]} 34. Nd5 {[%emt 0:01:02]} f4+ {[%emt 0:00:25]} 35. g4 {[%emt 0:00:34]} Qxg4# 0-1

[Event "POL-chT 2nd League-4 2020"]
[Site "Poronin"]
[Date "2020.09.08"]
[Round "4.12"]
[White "Czaplewska, Klara"]
[Black "Bukowska, Katarzyna"]
[Result "0-1"]
[ECO "C25"]
[WhiteElo "1875"]
[BlackElo "1887"]
[Annotator "NA"]
[PlyCount "112"]
[EventDate "2020.09.05"]
[EventType "team-tourn"]
[EventCountry "POL"]
[SourceTitle "playchess.com"]
[Source "ChessBase"]
[SourceQuality "1"]
[TimeControl "40/5400+30:900+30"]

1. e4 {[%emt 0:00:00]} e5 {[%emt 0:00:00]} 2. Nc3 {[%emt 0:00:00]} Nc6 {[%emt 0:00:17]} 3. f4 {[%emt 0:00:18]} Nf6 {[%emt 0:00:50]} 4. Nf3 {[%emt 0:02:22]} d6 {[%emt 0:01:41]} 5. d3 {[%emt 0:02:42]} Be7 {[%emt 0:00:39]} 6. g3 {[%emt 0:00:44]} O-O {[%emt 0:03:15]} 7. Bg2 {[%emt 0:00:04]} Bd7 {[%emt 0:01:03]} 8. O-O {[%emt 0:00:26]} Qc8 {[%emt 0:00:42]} 9. f5 {[%emt 0:08:39]} g6 {[%emt 0:06:52]} 10. fxg6 {[%emt 0:16:51]} fxg6 {[%emt 0:08:35]} 11. Bh6 {[%emt 0:02:55]} Re8 {[%emt 0:00:27]} 12. Bg5 {[%emt 0:03:37]} Nh5 {[%emt 0:06:15]} 13. Bxe7 Nxe7 14. Qd2 Kg7 15. Ng5 Nf6 16. d4 Rf8 17. Rad1 Bg4 18. Rde1 h6 19. Nf3 Nc6 20. dxe5 dxe5 21. Nd5 Qd7 22. Qc3 Bxf3 23. Bxf3 Nd4 24. Qxc7 Qxc7 25. Nxc7 Rac8 26. Nd5 Rxc2 27. Bg2 Rxb2 28. Rb1 Rxb1 29. Rxb1 b6 30. Rf1 Ne2+ 31. Kh1 Nxd5 32. exd5 Rxf1+ 33. Bxf1 Nc3 34. Bc4 Kf7 35. d6+ Ke8 36. Be6 Ne4 37. d7+ Kd8 38. Kg2 Nc5 39. Bf7 g5 40. Kf3 Kxd7 41. h4 Ke7 42. Bd5 Kf6 43. Bc4 gxh4 44. gxh4 Kf5 45. Be2 e4+ 46. Ke3 Ke5 47. Bb5 a6 48. Bc6 b5 49. Be8 b4 50. Bf7 a5 51. Bc4 a4 52. Bf7 b3 53. axb3 axb3 54. Bc4 b2 55. Ba2 Na4 56. Bb1 Nc3 0-1

[Event "POL-chT 2nd League-4 2020"]
[Site "Poronin"]
[Date "2020.09.08"]
[Round "4.13"]
[White "Luba, Lukasz"]
[Black "Bilczewski, Kacper"]
[Result "0-1"]
[ECO "A04"]
[WhiteElo "2212"]
[BlackElo "2101"]
[Annotator "ChessBase"]
[PlyCount "66"]
[EventDate "2020.09.05"]
[EventType "team-tourn"]
[EventCountry "POL"]
[SourceTitle "playchess.com"]
[Source "ChessBase"]
[SourceQuality "1"]
[TimeControl "40/5400+30:900+30"]

1. Nf3 {[%emt 0:00:00]} f5 {[%emt 0:00:00]} 2. d4 {[%emt 0:00:00]} Nf6 {[%emt 0:00:00]} 3. c4 {[%emt 0:00:20]} g6 {[%emt 0:00:00]} 4. Nc3 {[%emt 0:00:05]} Bg7 {[%emt 0:00:00]} 5. Bf4 {[%emt 0:02:04]} O-O {[%emt 0:00:15]} 6. e3 {[%emt 0:03:38]} d6 {[%emt 0:00:48]} 7. Be2 {[%emt 0:00:58]} e6 {[%emt 0:01:01]} 8. Qb3 {[%emt 0:03:14]} Qe7 {[%emt 0:05:57]} 9. O-O {[%emt 0:06:25]} h6 {[%emt 0:01:31]} 10. Bg3 {[%emt 0:07:09]} Kh7 {[%emt 0:06:34]} 11. Rac1 {[%emt 0:00:24]} Nc6 {[%emt 0:05:44]} 12. Rfd1 {[%emt 0:03:36]} Nh5 {[%emt 0:09:50]} 13. d5 {[%emt 0:04:09]} Nd8 {[%emt 0:00:58]} 14. Ne1 {[%emt 0:05:19]} Nxg3 {[%emt 0:01:28]} 15. hxg3 {[%emt 0:00:07]} e5 {[%emt 0:00:14]} 16. e4 {[%emt 0:00:05]} b6 {[%emt 0:02:20]} 17. Qc2 {[%emt 0:02:05]} Nf7 {[%emt 0:09:39]} 18. Nf3 {[%emt 0:07:51]} Ng5 {[%emt 0:02:09]} 19. Nxg5+ {[%emt 0:02:28]} Qxg5 {[%emt 0:00:06]} 20. Qa4 {[%emt 0:04:09]} Qd8 {[%emt 0:05:28]} 21. b4 {[%emt 0:02:30]} Bd7 {[%emt 0:00:05]} 22. Qa6 {[%emt 0:00:54]} Qc8 {[%emt 0:02:12]} 23. c5 {[%emt 0:00:44]} Qxa6 {[%emt 0:13:52]} 24. Bxa6 {[%emt 0:00:11]} bxc5 {[%emt 0:00:02]} 25. bxc5 {[%emt 0:00:15]} dxc5 {[%emt 0:00:07]} 26. Nb5 {[%emt 0:05:36]} fxe4 {[%emt 0:07:37]} 27. Rxc5 {[%emt 0:00:56]} Rf6 {[%emt 0:01:57]} 28. Rxc7 {[%emt 0:03:57]} Bg4 {[%emt 0:00:53]} 29. Bb7 {[%emt 0:05:51]} Raf8 {[%emt 0:00:26]} 30. Re1 {[%emt 0:04:38]} Rxf2 {[%emt 0:01:11]} 31. d6 {[%emt 0:00:26]} e3 {[%emt 0:06:12]} 32. Rxe3 {[%emt 0:06:41]} Rf1+ {[%emt 0:00:20]} 33. Kh2 {[%emt 0:00:18]} R8f5 {[%emt 0:00:10]} 0-1

[Event "POL-chT 2nd League-4 2020"]
[Site "Poronin"]
[Date "2020.09.08"]
[Round "4.14"]
[White "Samborski, Henryk"]
[Black "Laszewicz, Pawel"]
[Result "0-1"]
[ECO "B52"]
[WhiteElo "2069"]
[BlackElo "2150"]
[Annotator "ChessBase"]
[PlyCount "105"]
[EventDate "2020.09.05"]
[EventType "team-tourn"]
[EventCountry "POL"]
[SourceTitle "playchess.com"]
[Source "ChessBase"]
[SourceQuality "1"]
[TimeControl "40/5400+30:900+30"]

1. e4 {[%emt 0:00:00]} c5 {[%emt 0:00:23]} 2. Nf3 {[%emt 0:00:00]} d6 {[%emt 0:01:12]} 3. Bb5+ {[%emt 0:02:27]} Bd7 {[%emt 0:00:25]} 4. Bxd7+ {[%emt 0:01:09]} Nxd7 {[%emt 0:00:50]} 5. O-O {[%emt 0:04:59]} Ngf6 {[%emt 0:00:35]} 6. Re1 {[%emt 0:01:32]} g6 {[%emt 0:01:01]} 7. c3 {[%emt 0:01:02]} Bg7 {[%emt 0:01:27]} 8. d4 {[%emt 0:00:24]} O-O {[%emt 0:01:13]} 9. e5 {[%emt 0:08:24]} dxe5 {[%emt 0:10:36]} 10. dxe5 {[%emt 0:00:28]} Ng4 {[%emt 0:02:46]} 11. e6 {[%emt 0:01:15]} Nde5 {[%emt 0:05:51]} 12. Nxe5 {[%emt 0:15:30]} Qxd1 {[%emt 0:03:55]} 13. Rxd1 {[%emt 0:02:01]} Nxe5 {[%emt 0:04:33]} 14. exf7+ {[%emt 0:03:23]} Kxf7 {[%emt 0:00:49]} 15. Na3 {[%emt 0:03:05]} Rfd8 {[%emt 0:01:31]} 16. Be3 {[%emt 0:02:48]} Nd3 {[%emt 0:01:10]} 17. Rd2 {[%emt 0:02:41]} Nxb2 {[%emt 0:06:55]} 18. Rxb2 {[%emt 0:00:04]} Bxc3 {[%emt 0:00:16]} 19. Rbb1 {[%emt 0:01:30]} Rac8 {[%emt 0:12:05]} 20. Nb5 {[%emt 0:14:52]} Bxa1 {[%emt 0:00:56]} 21. Rxa1 {[%emt 0:00:06]} a6 {[%emt 0:01:08]} 22. Nc3 {[%emt 0:00:09]} b5 {[%emt 0:00:30]} 23. Kf1 {[%emt 0:01:44]} b4 {[%emt 0:02:00]} 24. Ne4 {[%emt 0:02:15]} c4 {[%emt 0:01:05]} 25. Rc1 {[%emt 0:02:41]} a5 {[%emt 0:09:25]} 26. Bd2 {[%emt 0:09:21]} c3 {[%emt 0:02:10]} 27. Be1 {[%emt 0:02:11]} Rc4 {[%emt 0:04:15]} 28. f3 {[%emt 0:00:42]} a4 {[%emt 0:04:22]} 29. Ke2 {[%emt 0:07:46]} c2 {[%emt 0:02:29]} 30. Bxb4 {[%emt 0:02:30]} Rxb4 {[%emt 0:01:38]} 31. Rxc2 {[%emt 0:00:04]} a3 {[%emt 0:00:43]} 32. Nd2 {[%emt 0:00:02]} Rb2 {[%emt 0:07:16]} 33. Kd1 {[%emt 0:00:11]} Rd3 {[%emt 0:01:49]} 34. Kc1 {[%emt 0:00:08]} Rd4 {[%emt 0:03:12]} 35. Nb1 {[%emt 0:00:45]} Rxc2+ {[%emt 0:01:43]} 36. Kxc2 {[%emt 0:00:02]} Rc4+ {[%emt 0:00:08]} 37. Kb3 {[%emt 0:02:12]} Rc1 {[%emt 0:00:37]} 38. Nxa3 {[%emt 0:00:06]} Rh1 {[%emt 0:00:15]} 39. h3 {[%emt 0:00:54]} Rh2 {[%emt 0:00:11]} 40. Nc4 {[%emt 0:00:00]} Rxg2 {[%emt 0:00:00]} 41. a4 {[%emt 0:00:17]} Rg3 {[%emt 0:00:43]} 42. Kb4 {[%emt 0:00:07]} Rxh3 {[%emt 0:00:48]} 43. a5 {[%emt 0:00:12]} Rh1 {[%emt 0:00:18]} 44. a6 {[%emt 0:00:37]} Rb1+ {[%emt 0:00:25]} 45. Kc5 {[%emt 0:00:29]} h5 {[%emt 0:06:53]} 46. a7 {[%emt 0:02:09]} Ra1 {[%emt 0:00:25]} 47. Kb6 {[%emt 0:00:02]} Rxa7 {[%emt 0:00:38]} 48. Kxa7 {[%emt 0:00:02]} h4 {[%emt 0:00:11]} 49. Kb6 {[%emt 0:01:30]} h3 {[%emt 0:00:20]} 50. Ne5+ {[%emt 0:00:04]} Ke6 {[%emt 0:00:54]} 51. Ng4 {[%emt 0:00:12]} Kf5 {[%emt 0:00:35]} 52. Kc5 {[%emt 0:04:18]} Kf4 {[%emt 0:00:25]} 53. Kd5 0-1

[Event "POL-chT 2nd League-4 2020"]
[Site "Poronin"]
[Date "2020.09.08"]
[Round "4.15"]
[White "Machlowski, Slawomir"]
[Black "Lamza, Zenon"]
[Result "1-0"]
[ECO "A00"]
[WhiteElo "2098"]
[BlackElo "2220"]
[Annotator "ChessBase"]
[PlyCount "53"]
[EventDate "2020.09.05"]
[EventType "team-tourn"]
[EventCountry "POL"]
[SourceTitle "playchess.com"]
[Source "ChessBase"]
[SourceQuality "1"]
[TimeControl "40/5400+30:900+30"]

1. g3 {[%emt 0:00:00]} Nf6 {[%emt 0:00:00]} 2. Bg2 {[%emt 0:00:00]} g6 {[%emt 0:00:22]} 3. c4 {[%emt 0:00:08]} Bg7 {[%emt 0:00:07]} 4. Nc3 {[%emt 0:00:13]} O-O {[%emt 0:00:45]} 5. b4 {[%emt 0:01:25]} a5 {[%emt 0:06:27]} 6. b5 {[%emt 0:08:00]} c6 {[%emt 0:05:30]} 7. Rb1 {[%emt 0:01:40]} d5 {[%emt 0:00:34]} 8. cxd5 {[%emt 0:02:40]} cxd5 {[%emt 0:00:38]} 9. d3 {[%emt 0:01:50]} d4 {[%emt 0:04:05]} 10. Na4 {[%emt 0:06:10]} Nd5 {[%emt 0:18:46]} 11. Ba3 {[%emt 0:03:30]} Re8 {[%emt 0:05:14]} 12. Nf3 {[%emt 0:03:31]} Nb6 {[%emt 0:18:04]} 13. Ng5 {[%emt 0:05:32]} Nxa4 {[%emt 0:02:57]} 14. Qxa4 {[%emt 0:00:38]} h6 {[%emt 0:00:26]} 15. Ne4 {[%emt 0:01:14]} Nd7 {[%emt 0:07:21]} 16. Qb3 {[%emt 0:06:32]} Nb6 {[%emt 0:03:14]} 17. Nc5 {[%emt 0:00:51]} a4 {[%emt 0:00:11]} 18. Qc2 {[%emt 0:01:23]} Nd5 {[%emt 0:01:55]} 19. b6 {[%emt 0:07:26]} e6 {[%emt 0:07:18]} 20. Ne4 {[%emt 0:04:36]} Bf8 {[%emt 0:01:01]} 21. Bxf8 {[%emt 0:00:29]} Rxf8 {[%emt 0:00:10]} 22. Qc5 {[%emt 0:01:09]} Ra6 {[%emt 0:00:35]} 23. Qxd4 {[%emt 0:01:08]} f5 {[%emt 0:01:17]} 24. Nc5 {[%emt 0:03:40]} Rxb6 {[%emt 0:00:40]} 25. O-O {[%emt 0:00:58]} Rd6 {[%emt 0:03:52]} 26. Nxb7 {[%emt 0:03:02]} Bxb7 {[%emt 0:01:15]} 27. Rxb7 {[%emt 0:00:15]} 1-0

[Event "POL-chT 2nd League-4 2020"]
[Site "Poronin"]
[Date "2020.09.08"]
[Round "4.16"]
[White "Radecki, Adam"]
[Black "Majocha, Piotr"]
[Result "1/2-1/2"]
[ECO "C00"]
[WhiteElo "2002"]
[BlackElo "2047"]
[Annotator "ChessBase"]
[PlyCount "22"]
[EventDate "2020.09.05"]
[EventType "team-tourn"]
[EventCountry "POL"]
[SourceTitle "playchess.com"]
[Source "ChessBase"]
[SourceQuality "1"]
[TimeControl "40/5400+30:900+30"]

1. e4 {[%emt 0:00:09]} e6 {[%emt 0:00:00]} 2. d3 {[%emt 0:00:43]} d5 {[%emt 0:00:00]} 3. Nd2 {[%emt 0:00:27]} Nf6 {[%emt 0:00:00]} 4. g3 {[%emt 0:00:34]} c5 {[%emt 0:01:25]} 5. Bg2 {[%emt 0:00:16]} Nc6 {[%emt 0:00:51]} 6. Ngf3 {[%emt 0:00:13]} Be7 {[%emt 0:02:24]} 7. O-O {[%emt 0:00:38]} O-O {[%emt 0:00:29]} 8. c3 {[%emt 0:00:40]} Re8 {[%emt 0:07:35]} 9. Re1 {[%emt 0:01:54]} Qc7 {[%emt 0:09:17]} 10. Qc2 {[%emt 0:01:34]} b6 {[%emt 0:09:10]} 11. Nf1 {[%emt 0:01:01]} Bb7 {[%emt 0:10:46]} 1/2-1/2